bitfinex-derivatives/quotes_BTCF0:USTF0_20240820
["timestamp","ask_amount","ask_price","bid_price","bid_amount"]
[1724149052758,0.067737,60824.0,60823.0,0.16515886]
[1724149053149,0.066737,60824.0,60823.0,0.16415886]
[1724149053354,0.067737,60824.0,60823.0,0.11594659]
[1724149060263,0.067737,60824.0,60823.0,0.18168459]
[1724149061661,0.066737,60824.0,60823.0,0.18068459]
[1724149061860,0.066737,60824.0,60823.0,0.18168459]
[1724149061861,0.067737,60824.0,60823.0,0.18168459]
[1724149064359,0.067737,60824.0,60823.0,0.00224659]
[1724149064866,0.133474,60824.0,60823.0,0.00224659]
[1724149065056,0.668014,60824.0,60823.0,0.00224659]
[1724149065569,0.174774,60824.0,60823.0,0.00224659]
[1724149065956,0.173774,60824.0,60823.0,0.00124659]
[1724149066154,0.174774,60824.0,60823.0,0.00224659]
[1724149068262,0.173774,60824.0,60823.0,0.00124659]
[1724149068466,0.174774,60824.0,60823.0,0.00224659]
[1724149071267,0.174774,60824.0,60823.0,0.05143853]
[1724149071456,0.18624284,60824.0,60823.0,0.05143853]
[1724149072368,0.18624284,60824.0,60823.0,0.00224659]
[1724149072872,0.18624284,60824.0,60823.0,0.05146799]
[1724149073167,0.174774,60824.0,60823.0,0.05146799]
[1724149073368,0.174774,60824.0,60823.0,0.00224659]
[1724149075366,0.133474,60824.0,60823.0,0.00224659]
[1724149076763,0.133474,60824.0,60823.0,0.0680074]
[1724149077561,0.133474,60824.0,60823.0,0.00224659]
[1724149080577,0.133474,60824.0,60821.0,0.04931685]
[1724149080578,0.065739,60822.0,60821.0,0.04931685]
[1724149080876,0.065739,60822.0,60820.0,0.04932012]
[1724149080877,0.13148,60821.0,60820.0,0.04932012]
[1724149081077,0.065741,60820.0,60818.0,0.04932012]
[1724149081269,0.09807616,60822.0,60817.0,0.04932012]
[1724149081270,0.131488,60818.0,60817.0,0.04932012]
[1724149081477,0.131488,60818.0,60813.0,0.15946081]
[1724149081478,0.13149,60817.0,60816.0,0.04932012]
[1724149081669,0.179445,60817.0,60815.0,0.04932012]
[1724149081864,0.1137,60816.0,60815.0,0.04932012]
[1724149082064,0.065748,60814.0,60813.0,0.10508089]
[1724149083880,0.066748,60814.0,60813.0,0.10508089]
[1724149084375,0.067748,60814.0,60813.0,0.15433733]
[1724149085380,0.067748,60814.0,60813.0,0.10508089]
[1724149085779,0.067748,60814.0,60813.0,0.15433733]
[1724149087482,0.067748,60814.0,60813.0,0.10508089]
[1724149087677,0.067748,60814.0,60813.0,0.15433733]
[1724149089674,0.133496,60814.0,60813.0,0.14295644]
[1724149089874,0.133496,60814.0,60813.0,0.0937]
[1724149093891,0.494296,60814.0,60813.0,0.0937]
[1724149094890,0.607996,60814.0,60813.0,0.0937]
[1724149107201,0.067748,60814.0,60813.0,0.2074]
[1724149107496,0.067748,60814.0,60813.0,0.25663069]
[1724149107696,0.067748,60814.0,60813.0,0.2074]
[1724149108294,0.067748,60814.0,60813.0,0.32241075]
[1724149109393,0.067748,60814.0,60813.0,0.273149]
[1724149109598,0.067748,60814.0,60813.0,0.159449]
[1724149109899,0.181448,60814.0,60813.0,0.159449]
[1724149110296,0.181448,60814.0,60811.0,0.0660074]
[1724149110297,0.1315,60812.0,60811.0,0.0660074]
[1724149110805,0.1315,60812.0,60811.0,0.00024659]
[1724149111502,0.1325,60812.0,60811.0,0.00024659]
[1724149111707,0.1335,60812.0,60811.0,0.00024659]
[1724149115996,0.06775,60812.0,60811.0,0.00024659]
[1724149117003,0.18145,60812.0,60811.0,0.00024659]
[1724149120102,0.002,60812.0,60811.0,0.2454584]
[1724149120307,0.00024659,60818.0,60811.0,0.47474659]
[1724149120508,0.065745,60817.0,60816.0,0.065745]
[1724149120708,0.065745,60817.0,60816.0,0.29209336]
[1724149121007,0.065745,60817.0,60816.0,0.226345]
[1724149122010,0.066745,60817.0,60816.0,0.226345]
[1724149123410,0.067745,60817.0,60816.0,0.227345]
[1724149125006,0.181445,60817.0,60816.0,0.113645]
[1724149126007,0.24719,60817.0,60816.0,0.001]
[1724149128708,0.27893596,60817.0,60816.0,0.001]
[1724149130121,0.29038058,60817.0,60816.0,0.001]
[1724149132513,0.35612558,60817.0,60816.0,0.001]
[1724149134726,0.35612558,60817.0,60811.0,0.00024659]
[1724149134727,0.19725,60812.0,60811.0,0.00024659]
[1724149134922,4.47349596,60812.0,60811.0,1e-08]
[1724149135825,4.44175,60812.0,60811.0,1e-08]
[1724149136220,4.44275,60812.0,60811.0,1e-08]
[1724149136821,4.44275,60812.0,60804.0,0.04927843]
[1724149136822,0.131516,60805.0,60804.0,0.04927843]
[1724149137019,0.131516,60805.0,60800.0,0.06574836]
[1724149137020,0.131518,60804.0,60803.0,0.04927843]
[1724149137219,0.245218,60804.0,60803.0,0.04927843]
[1724149138017,0.065761,60802.0,60800.0,0.04927141]
[1724149138216,0.065763,60800.0,60798.0,0.14107141]
[1724149138523,0.065763,60800.0,60798.0,0.0918]
[1724149139330,0.065764,60799.0,60798.0,0.0918]
[1724149140623,0.066764,60799.0,60798.0,0.0918]
[1724149141115,0.066764,60799.0,60798.0,0.0928]
[1724149141519,0.066764,60799.0,60798.0,0.0918]
[1724149141737,0.067764,60799.0,60798.0,0.0928]
[1724149142125,0.181464,60799.0,60798.0,0.0928]
[1724149143134,0.067764,60799.0,60798.0,0.0928]
[1724149143427,0.181464,60799.0,60798.0,0.0928]
[1724149144222,0.247228,60799.0,60798.0,0.0928]
[1724149147728,0.25867255,60799.0,60798.0,0.0928]
[1724149147927,0.25867255,60799.0,60798.0,0.001]
[1724149153129,0.32443655,60799.0,60798.0,0.001]
[1724149156130,0.21073655,60799.0,60798.0,0.001]
[1724149156336,0.32443655,60799.0,60798.0,0.001]
[1724149160144,0.690735,60798.0,60797.0,1e-08]
[1724149160344,0.197295,60798.0,60797.0,1e-08]
[1724149161350,0.198295,60798.0,60797.0,0.00100001]
[1724149161738,0.199295,60798.0,60797.0,0.00100001]
[1724149168147,0.199295,60798.0,60791.0,0.096]
[1724149168148,0.197316,60792.0,60791.0,0.096]
[1724149168348,0.671816,60792.0,60791.0,0.14527141]
[1724149169347,0.671816,60792.0,60791.0,0.096]
[1724149169555,0.672816,60792.0,60791.0,0.096]
[1724149169749,0.672816,60792.0,60791.0,0.14527141]
[1724149170053,0.673816,60792.0,60791.0,0.14527141]
[1724149170350,0.673816,60792.0,60791.0,0.096]
[1724149172756,0.739588,60792.0,60791.0,0.096]
[1724149173449,0.739588,60792.0,60791.0,0.001063]
[1724149173651,0.739588,60792.0,60791.0,1e-06]
[1724149175155,0.7508432,60792.0,60791.0,1e-06]
[1724149176153,0.7508432,60792.0,60787.0,0.048]
[1724149176154,0.197328,60788.0,60787.0,0.048]
[1724149176352,0.311028,60788.0,60787.0,0.048]
[1724149177255,0.312028,60788.0,60787.0,0.048]
[1724149177952,0.313028,60788.0,60787.0,0.048]
[1724149178852,0.673828,60788.0,60787.0,0.048]
[1724149180551,0.197334,60786.0,60785.0,0.00024659]
[1724149181752,0.198334,60786.0,60785.0,0.00024659]
[1724149182060,0.199334,60786.0,60785.0,0.00024659]
[1724149184558,0.313034,60786.0,60785.0,0.00024659]
[1724149187555,0.673834,60786.0,60785.0,0.00024659]
[1724149188754,0.673834,60786.0,60778.0,0.0477]
[1724149188755,1.53002,60786.0,60774.0,0.04927141]
[1724149188964,1.53002,60786.0,60771.0,0.06574836]
[1724149188965,0.065792,60773.0,60772.0,0.0457]
[1724149189154,0.245284,60773.0,60772.0,0.093]
[1724149190661,0.246284,60773.0,60772.0,0.093]
[1724149191355,0.247284,60773.0,60772.0,0.093]
[1724149193453,0.181492,60773.0,60772.0,0.093]
[1724149199368,0.067792,60773.0,60772.0,0.093]
[1724149199668,0.181492,60773.0,60772.0,0.093]
[1724149201065,0.067792,60773.0,60772.0,0.158793]
[1724149201254,0.002,60773.0,60772.0,0.272493]
[1724149202168,0.002,60773.0,60772.0,0.158793]
[1724149204261,0.067792,60773.0,60772.0,0.158793]
[1724149205670,0.002,60773.0,60772.0,0.158793]
[1724149206462,0.002,60773.0,60772.0,0.338286]
[1724149206663,0.00024682,60779.0,60778.0,0.065787]
[1724149206873,0.00024682,60779.0,60778.0,0.179487]
[1724149207370,0.1137,60787.0,60783.0,0.065781]
[1724149207566,0.1137,60785.0,60783.0,0.065781]
[1724149207960,0.1137,60785.0,60783.0,0.159981]
[1724149208769,0.3628,60784.0,60783.0,0.159981]
[1724149209970,0.3628,60784.0,60783.0,0.17106802]
[1724149210964,0.3618,60784.0,60783.0,0.17306802]
[1724149211265,0.3628,60784.0,60783.0,0.17306802]
[1724149212175,0.42858,60784.0,60783.0,0.01308702]
[1724149213975,0.42858,60784.0,60783.0,0.19256802]
[1724149214170,0.42858,60784.0,60783.0,0.23966802]
[1724149214674,0.54228,60784.0,60783.0,0.12596802]
[1724149215276,0.54228,60784.0,60783.0,0.114881]
[1724149215479,0.54228,60784.0,60783.0,0.067781]
[1724149216783,0.18148,60784.0,60783.0,0.067781]
[1724149218177,0.27949157,60784.0,60783.0,0.067781]
[1724149219880,0.27949157,60784.0,60783.0,0.002]
[1724149220178,0.34527157,60784.0,60783.0,0.002]
[1724149221073,0.24726,60784.0,60783.0,0.002]
[1724149221878,0.31304,60784.0,60783.0,0.002]
[1724149222270,0.065787,60778.0,60777.0,0.36104682]
[1724149222474,0.179487,60778.0,60777.0,0.3867567]
[1724149222976,0.245274,60778.0,60777.0,0.0259567]
[1724149223184,0.245274,60778.0,60777.0,0.00024682]
[1724149223778,0.293874,60778.0,60777.0,0.00024682]
[1724149224487,0.295874,60778.0,60777.0,0.00124682]
[1724149230676,0.361661,60778.0,60777.0,0.00124682]
[1724149233387,0.45965954,60778.0,60777.0,0.00124682]
[1724149234090,0.45865954,60778.0,60777.0,0.00124682]
[1724149234386,0.45965954,60778.0,60777.0,0.00124682]
[1724149234789,0.41105954,60778.0,60777.0,0.00124682]
[1724149236284,0.313061,60778.0,60777.0,0.00124682]
[1724149241691,0.313061,60778.0,60777.0,0.0505039]
[1724149243392,0.313061,60778.0,60777.0,0.00124682]
[1724149244590,0.313061,60778.0,60777.0,0.0505039]
[1724149248286,0.313061,60778.0,60777.0,0.00124682]
[1724149248480,0.41105954,60778.0,60777.0,0.00124682]
[1724149249496,0.313061,60778.0,60777.0,0.00124682]
[1724149254197,4.083061,60778.0,60777.0,0.00124682]
[1724149255388,0.313061,60778.0,60777.0,0.00124682]
[1724149256499,0.673861,60778.0,60777.0,0.00124682]
[1724149272896,0.560161,60778.0,60777.0,0.00124682]
[1724149273202,0.673861,60778.0,60777.0,0.00124682]
[1724149277013,0.13159,60770.0,60768.0,0.45663548]
[1724149277211,0.24529,60770.0,60769.0,0.08516205]
[1724149278006,0.311085,60770.0,60769.0,0.08516205]
[1724149278212,0.311085,60770.0,60769.0,0.15084033]
[1724149278412,0.312085,60770.0,60769.0,0.15184033]
[1724149278818,0.313085,60770.0,60769.0,0.15184033]
[1724149279121,0.313085,60770.0,60769.0,0.15184202]
[1724149279514,0.313085,60770.0,60769.0,0.12612656]
[1724149280616,0.199385,60770.0,60769.0,0.12612656]
[1724149280825,0.199385,60770.0,60769.0,0.06044828]
[1724149281015,0.312085,60770.0,60769.0,0.05944828]
[1724149281211,0.313085,60770.0,60769.0,0.05944828]
[1724149288614,0.313085,60770.0,60769.0,0.0483]
[1724149292130,0.197388,60769.0,60768.0,0.0465784]
[1724149293320,0.198388,60769.0,60768.0,0.0465784]
[1724149293730,0.199388,60769.0,60768.0,0.0001784]
[1724149295028,0.133592,60769.0,60768.0,0.52400463]
[1724149295232,0.133592,60769.0,60768.0,0.50039336]
[1724149295428,0.133592,60769.0,60768.0,0.50039335]
[1724149297327,0.067796,60769.0,60768.0,0.50039335]
[1724149297629,0.067796,60769.0,60768.0,1.39407335]
[1724149298022,0.067796,60769.0,60768.0,1.45987135]
[1724149299225,0.067796,60769.0,60768.0,0.38669184]
[1724149302732,0.133592,60769.0,60768.0,0.38669184]
[1724149302931,0.067796,60769.0,60768.0,0.38669184]
[1724149303332,0.067796,60769.0,60768.0,0.45248984]
[1724149304337,0.067796,60769.0,60768.0,0.4267764]
[1724149304638,0.067796,60769.0,60768.0,0.45249019]
[1724149308039,0.067796,60769.0,60768.0,0.09169019]
[1724149308539,0.067796,60769.0,60768.0,0.45249019]
[1724149311240,0.067796,60769.0,60768.0,0.4267764]
[1724149311538,0.067796,60769.0,60768.0,0.45249019]
[1724149316739,0.067796,60769.0,60768.0,0.46998062]
[1724149319036,0.067796,60769.0,60768.0,0.46997976]
[1724149321751,0.067796,60769.0,60768.0,0.45248933]
[1724149324742,0.067796,60769.0,60768.0,0.47820288]
[1724149325335,0.067796,60769.0,60768.0,0.50182448]
[1724149325542,0.067796,60769.0,60768.0,0.52753865]
[1724149329148,0.067796,60769.0,60768.0,0.16673865]
[1724149329361,0.067796,60769.0,60768.0,0.52753865]
[1724149330142,0.067796,60769.0,60768.0,0.4782035]
[1724149330754,0.067796,60769.0,60768.0,0.56019007]
[1724149337956,0.067796,60769.0,60768.0,0.19939007]
[1724149338164,0.067796,60769.0,60768.0,0.56019007]
[1724149338754,0.067796,60769.0,60768.0,0.68550766]
[1724149338949,0.133592,60769.0,60768.0,0.0516055]
[1724149339154,0.627272,60769.0,60768.0,0.0001784]
[1724149339654,4.331476,60769.0,60761.0,0.41016085]
[1724149339855,0.1137,60762.0,60761.0,0.41016085]
[1724149340056,0.1137,60762.0,60761.0,0.47908636]
[1724149340359,0.1137,60762.0,60761.0,0.46159457]
[1724149340558,0.11387689,60762.0,60761.0,0.42307364]
[1724149341265,0.17968089,60762.0,60761.0,0.42307364]
[1724149341465,0.18068089,60762.0,60761.0,0.42307364]
[1724149342868,0.18168089,60762.0,60761.0,0.42307364]
[1724149344569,0.18168089,60762.0,60761.0,0.39735678]
[1724149344759,0.18168089,60762.0,60761.0,0.42307364]
[1724149344960,0.24748489,60762.0,60761.0,0.42307364]
[1724149347665,0.24748489,60762.0,60761.0,0.48879884]
[1724149348369,0.24748489,60762.0,60761.0,0.48879903]
[1724149348569,0.24748489,60762.0,60761.0,0.48879925]
[1724149349667,0.24748489,60762.0,60761.0,0.42307405]
[1724149351366,0.24748489,60762.0,60761.0,0.37163992]
[1724149352259,0.31328889,60762.0,60761.0,0.37163992]
[1724149353771,0.31328889,60762.0,60761.0,0.42307424]
[1724149353962,0.31328889,60762.0,60761.0,0.39735708]
[1724149354558,0.31328889,60762.0,60761.0,0.03655708]
[1724149356473,0.31328889,60762.0,60761.0,0.01083992]
[1724149356774,0.31328889,60762.0,60761.0,0.02571716]
[1724149357968,0.54248089,60762.0,60756.0,0.04928426]
[1724149358174,0.065811,60756.0,60755.0,0.04928426]
[1724149358373,0.131624,60755.0,60754.0,0.04928426]
[1724149358559,0.131626,60754.0,60753.0,0.04928426]
[1724149358759,0.245326,60754.0,60753.0,0.04928426]
[1724149359668,0.245326,60754.0,60752.0,0.04928426]
[1724149359669,0.131628,60753.0,60752.0,0.04928426]
[1724149359875,0.245328,60753.0,60752.0,0.04928426]
[1724149361468,0.246328,60753.0,60752.0,0.04928426]
[1724149362674,0.247328,60753.0,60752.0,0.04928426]
[1724149363674,0.13163,60752.0,60751.0,0.04928426]
[1724149364469,0.065817,60750.0,60749.0,0.07673938]
[1724149364670,0.179517,60750.0,60749.0,0.07673938]
[1724149365582,0.066817,60750.0,60749.0,0.07673938]
[1724149367077,0.067817,60750.0,60749.0,0.07673938]
[1724149367582,0.067817,60750.0,60749.0,0.01101418]
[1724149367780,0.067817,60750.0,60748.0,0.426619]
[1724149367781,0.065818,60749.0,60748.0,0.426619]
[1724149367984,0.0659469,60749.0,60748.0,0.426619]
[1724149368171,0.1796469,60749.0,60748.0,0.426619]
[1724149368572,0.1796469,60749.0,60748.0,0.43733328]
[1724149368985,0.1806469,60749.0,60748.0,0.43733328]
[1724149369879,0.1806469,60749.0,60748.0,0.37151428]
[1724149370282,0.1816469,60749.0,60748.0,0.37151428]
[1724149373470,0.1816469,60749.0,60748.0,0.01071428]
[1724149373671,0.2474649,60749.0,60748.0,0.3608]
[1724149375986,0.131642,60746.0,60745.0,0.09277836]
[1724149376191,0.245342,60746.0,60745.0,0.01079179]
[1724149376490,0.065825,60743.0,60742.0,0.47064]
[1724149376789,0.179525,60743.0,60742.0,0.4694]
[1724149377293,0.179525,60743.0,60742.0,0.48022085]
[1724149377479,0.179525,60743.0,60742.0,0.15412085]
[1724149377480,0.24535,60743.0,60742.0,0.15412085]
[1724149378384,0.24635,60743.0,60742.0,0.15412085]
[1724149378782,0.24635,60743.0,60742.0,0.05732085]
[1724149379086,0.24635,60743.0,60742.0,0.06009718]
[1724149379274,0.24735,60743.0,60742.0,0.06009718]
[1724149379479,0.24735,60743.0,60742.0,0.01082085]
[1724149379792,0.131652,60742.0,60741.0,0.04927633]
[1724149380085,0.065828,60740.0,60739.0,0.06569856]
[1724149380286,0.179528,60740.0,60739.0,0.06569856]
[1724149380892,0.24551076,60740.0,60739.0,0.06569856]
[1724149381184,0.13166,60738.0,60737.0,0.06569856]
[1724149381392,0.24536,60738.0,60737.0,0.06569856]
[1724149381779,0.065831,60737.0,60736.0,0.06569856]
[1724149381986,0.131662,60737.0,60736.0,0.06569856]
[1724149383592,0.1137,60738.0,60735.0,0.43734766]
[1724149383593,0.131664,60736.0,60735.0,0.43734766]
[1724149383780,0.131664,60736.0,60735.0,0.0108491]
[1724149383981,0.065834,60734.0,60733.0,0.06569856]
[1724149384180,0.065835,60733.0,60732.0,0.15839856]
[1724149384481,0.065835,60733.0,60732.0,0.05776592]
[1724149384683,0.065835,60733.0,60732.0,0.12346448]
[1724149385177,0.065835,60733.0,60732.0,0.05776592]
[1724149385893,0.067835,60733.0,60732.0,0.05776592]
[1724149389988,0.067835,60733.0,60732.0,0.01056592]
[1724149390184,0.065837,60732.0,60731.0,0.00019713]
[1724149390380,0.1137,60732.0,60731.0,0.00019713]
[1724149390698,0.1137,60732.0,60731.0,0.36099713]
[1724149391286,0.179537,60732.0,60731.0,0.3719537]
[1724149391601,0.180537,60732.0,60731.0,0.3719537]
[1724149392197,0.181537,60732.0,60731.0,0.3719537]
[1724149394293,0.002,60732.0,60731.0,1.5675897]
[1724149394495,0.00015476,60740.0,60739.0,0.065829]
[1724149394686,0.00015476,60740.0,60739.0,0.540329]
[1724149394889,0.00015476,60740.0,60739.0,0.60593923]
[1724149395089,0.00015476,60740.0,60739.0,0.540329]
[1724149395697,0.00115476,60740.0,60739.0,0.540329]
[1724149396188,0.00115476,60740.0,60739.0,1.034249]
[1724149397699,0.00215476,60740.0,60739.0,1.035249]
[1724149400194,0.00215476,60740.0,60739.0,1.06097219]
[1724149400395,0.00215476,60740.0,60739.0,1.07168422]
[1724149400597,0.00215476,60740.0,60739.0,1.27909771]
[1724149400997,0.00215476,60740.0,60739.0,1.1970488]
[1724149402093,0.00215476,60740.0,60739.0,1.19704798]
[1724149402500,0.00215476,60740.0,60739.0,0.70312798]
[1724149403807,0.06582,60747.0,60746.0,0.065821]
[1724149404002,0.06582,60747.0,60746.0,0.426621]
[1724149404401,0.00024682,60749.0,60748.0,0.065819]
[1724149404604,0.11394682,60749.0,60748.0,0.11505869]
[1724149405503,0.11394682,60749.0,60748.0,0.065819]
[1724149405712,0.11394682,60749.0,60748.0,0.11506573]
[1724149406710,0.11494682,60749.0,60748.0,0.11706573]
[1724149407011,0.11594682,60749.0,60748.0,0.11906573]
[1724149407209,0.00224682,60749.0,60748.0,0.069819]
[1724149407603,0.00224682,60749.0,60748.0,0.183519]
[1724149409297,0.00224682,60749.0,60748.0,0.19406598]
[1724149410210,0.00224682,60749.0,60748.0,0.2597189]
[1724149418816,0.00224682,60749.0,60748.0,0.6205189]
[1724149419516,0.00224682,60749.0,60748.0,0.55486598]
[1724149423516,0.00224682,60749.0,60748.0,0.76228295]
[1724149424514,0.00224682,60749.0,60748.0,0.6802168]
[1724149427221,0.065805,60762.0,60761.0,0.065805]
[1724149427524,0.065805,60762.0,60761.0,0.426605]
[1724149427720,0.065805,60762.0,60761.0,0.4923792]
[1724149428218,0.09757418,60762.0,60761.0,0.426605]
[1724149428621,0.2284004,60762.0,60761.0,0.426605]
[1724149429015,0.09757418,60762.0,60761.0,0.426605]
[1724149429215,0.10357418,60762.0,60761.0,0.426605]
[1724149430114,0.10357418,60762.0,60761.0,0.429605]
[1724149430115,0.10457418,60762.0,60761.0,0.429605]
[1724149430310,0.22941028,60762.0,60761.0,0.429605]
[1724149430520,0.22941028,60762.0,60761.0,0.432605]
[1724149430725,0.09857418,60762.0,60761.0,0.432605]
[1724149432223,0.09857372,60762.0,60761.0,0.432605]
[1724149432517,0.09857372,60762.0,60761.0,0.44311177]
[1724149435324,0.09857372,60762.0,60761.0,0.08231177]
[1724149435524,0.066805,60762.0,60761.0,0.08231177]
[1724149436127,0.180505,60762.0,60761.0,0.08231177]
[1724149438528,0.180505,60762.0,60761.0,0.13158659]
[1724149440233,0.180505,60762.0,60761.0,0.08231177]
[1724149442435,0.180505,60762.0,60761.0,0.13158659]
[1724149444333,0.180505,60762.0,60761.0,0.08231177]
[1724149444927,0.066805,60762.0,60761.0,0.08231177]
[1724149446233,0.066805,60762.0,60761.0,0.13158659]
[1724149447233,0.066805,60762.0,60761.0,0.08231177]
[1724149448329,0.066805,60762.0,60761.0,0.19601177]
[1724149448525,0.001,60762.0,60761.0,0.19601177]
[1724149450238,0.001,60762.0,60761.0,0.27822952]
[1724149450441,0.001,60762.0,60761.0,0.3213307]
[1724149450943,0.065795,60767.0,60766.0,0.065796]
[1724149451231,0.065795,60767.0,60766.0,0.540296]
[1724149451437,0.09756039,60767.0,60766.0,0.540296]
[1724149452229,0.09956039,60767.0,60766.0,0.540296]
[1724149452842,0.10056039,60767.0,60766.0,0.56900954]
[1724149454134,0.10056022,60767.0,60766.0,0.56900954]
[1724149455134,0.10056022,60767.0,60766.0,0.59472286]
[1724149455332,0.10056022,60767.0,60766.0,0.56900954]
[1724149456327,0.10056022,60767.0,60766.0,0.543296]
[1724149458148,0.03476522,60767.0,60766.0,0.543296]
[1724149458338,0.003,60767.0,60766.0,0.543296]
[1724149460946,0.003,60767.0,60766.0,0.589396]
[1724149461145,0.003,60767.0,60766.0,0.634496]
[1724149464046,0.003,60767.0,60766.0,0.273696]
[1724149464342,0.003,60767.0,60766.0,0.634496]
[1724149467740,0.003,60767.0,60766.0,0.66020852]
[1724149467941,0.003,60767.0,60766.0,0.68592104]
[1724149468643,0.01085929,60778.0,60773.0,0.065788]
[1724149468945,0.065787,60775.0,60774.0,0.11502542]
[1724149469140,0.065787,60775.0,60774.0,0.065788]
[1724149469744,0.065787,60775.0,60774.0,0.179488]
[1724149470351,0.065787,60775.0,60774.0,0.22871721]
[1724149470548,0.065787,60775.0,60774.0,0.20519839]
[1724149471143,0.065787,60775.0,60774.0,0.56599839]
[1724149471452,0.070787,60775.0,60774.0,0.56599839]
[1724149472550,0.070787,60775.0,60774.0,0.57665315]
[1724149472946,0.080787,60775.0,60774.0,0.57765315]
[1724149473550,0.11254788,60775.0,60774.0,0.57765315]
[1724149473957,0.11254788,60775.0,60774.0,0.55194276]
[1724149474151,0.11254788,60775.0,60774.0,0.57765279]
[1724149475248,0.22699339,60775.0,60774.0,0.57765279]
[1724149475550,0.11254788,60775.0,60774.0,0.55194276]
[1724149481546,0.080787,60775.0,60774.0,0.55194276]
[1724149482455,0.080787,60775.0,60774.0,0.51186445]
[1724149482845,0.080787,60775.0,60774.0,0.48615476]
[1724149486661,0.080787,60775.0,60774.0,0.55194276]
[1724149488553,0.19532943,60775.0,60774.0,0.55194276]
[1724149488753,0.22708993,60775.0,60774.0,0.55194276]
[1724149489164,0.1125475,60775.0,60774.0,0.55194276]
[1724149491057,0.080787,60775.0,60774.0,0.55194276]
[1724149491257,0.11254828,60775.0,60774.0,0.55194276]
[1724149492252,0.2116231,60775.0,60774.0,0.55194276]
[1724149492454,0.24338438,60775.0,60774.0,0.43824276]
[1724149492650,0.24338438,60775.0,60774.0,0.55194276]
[1724149493252,0.24338438,60775.0,60774.0,0.57765311]
[1724149494159,0.11254828,60775.0,60774.0,0.60336346]
[1724149494757,0.11254828,60775.0,60774.0,0.60336345]
[1724149495766,0.11254828,60775.0,60774.0,0.53757546]
[1724149495972,0.21178596,60775.0,60774.0,0.42387546]
[1724149496160,0.24356901,60775.0,60774.0,0.53757546]
[1724149496358,0.24356901,60775.0,60774.0,0.48615476]
[1724149496561,0.080787,60775.0,60774.0,0.53757546]
[1724149497564,0.080787,60775.0,60774.0,0.51186511]
[1724149497771,0.080787,60775.0,60774.0,0.39816511]
[1724149497969,0.080787,60775.0,60774.0,0.48615476]
[1724149498274,0.080787,60775.0,60774.0,0.69359024]
[1724149501369,0.080787,60775.0,60774.0,0.33279024]
[1724149501570,0.080787,60775.0,60774.0,0.69359024]
[1724149502466,0.080787,60775.0,60774.0,0.33279024]
[1724149502664,0.080787,60775.0,60774.0,0.69359024]
[1724149503568,0.080787,60775.0,60774.0,0.48615476]
[1724149503768,0.11254828,60775.0,60774.0,0.48615476]
[1724149504977,0.11254828,60775.0,60774.0,0.51186511]
[1724149505878,0.11254828,60775.0,60774.0,0.53757546]
[1724149508375,0.11254821,60775.0,60774.0,0.53757546]
[1724149509168,0.11254821,60775.0,60774.0,0.57871192]
[1724149509370,0.21187516,60775.0,60774.0,0.5787118]
[1724149509566,0.24363637,60775.0,60774.0,0.48615476]
[1724149509771,0.24363637,60775.0,60774.0,0.5787118]
[1724149509976,0.24363637,60775.0,60774.0,0.48615476]
[1724149510170,0.24363637,60775.0,60774.0,0.5787118]
[1724149510677,0.24363637,60775.0,60774.0,0.78614699]
[1724149510678,0.080787,60775.0,60774.0,0.78614699]
[1724149512380,0.080787,60775.0,60774.0,0.42534699]
[1724149512580,0.080787,60775.0,60774.0,0.78614699]
[1724149512983,0.080787,60775.0,60774.0,0.74501053]
[1724149514177,0.080787,60775.0,60774.0,0.76250001]
[1724149517475,0.080787,60775.0,60774.0,0.27639833]
[1724149517677,0.080787,60775.0,60774.0,0.76250001]
[1724149518291,0.080787,60775.0,60774.0,0.6803665]
[1724149518479,0.080787,60775.0,60774.0,0.3195665]
[1724149518673,0.080787,60775.0,60774.0,0.6044276]
[1724149518876,0.080787,60775.0,60774.0,0.22613812]
[1724149519386,0.080787,60775.0,60774.0,0.58693812]
[1724149519881,0.080787,60775.0,60774.0,0.62807458]
[1724149522379,0.080787,60775.0,60774.0,0.53551754]
[1724149522577,0.080787,60775.0,60774.0,0.62807458]
[1724149525578,0.080787,60775.0,60774.0,0.70401348]
[1724149525985,0.080787,60775.0,60774.0,0.76980148]
[1724149526278,0.00024682,60781.0,60776.0,0.065785]
[1724149526479,0.065784,60778.0,60777.0,0.20304393]
[1724149526790,0.065784,60778.0,60777.0,0.4420409]
[1724149526987,0.065784,60778.0,60777.0,0.44203475]
[1724149527191,0.065784,60778.0,60777.0,0.52426225]
[1724149528691,0.065784,60778.0,60777.0,0.39897143]
[1724149528891,0.072784,60778.0,60777.0,0.39997143]
[1724149529289,0.072784,60778.0,60777.0,0.67854393]
[1724149529594,0.085784,60778.0,60777.0,0.74532793]
[1724149530290,0.085784,60778.0,60777.0,0.74532033]
[1724149533097,0.085784,60778.0,60777.0,0.70212405]
[1724149533288,0.085784,60778.0,60777.0,0.7453205]
[1724149534287,0.085784,60778.0,60777.0,0.67848045]
[1724149534488,0.085784,60778.0,60777.0,0.74532082]
[1724149534691,0.085784,60778.0,60777.0,0.70418827]
[1724149534894,0.085784,60778.0,60777.0,0.71961298]
[1724149535190,0.085784,60778.0,60777.0,0.67848044]
[1724149535592,0.085784,60778.0,60777.0,0.30019183]
[1724149535787,0.085784,60778.0,60777.0,0.66099187]
[1724149536298,0.085784,60778.0,60777.0,0.30019187]
[1724149536595,0.085784,60778.0,60777.0,0.66099187]
[1724149536797,0.085784,60778.0,60777.0,0.74321937]
[1724149536987,0.085784,60778.0,60777.0,0.86850882]
[1724149537390,0.085784,60778.0,60777.0,0.66099282]
[1724149537601,0.085784,60778.0,60777.0,0.66099229]
[1724149540801,0.11754257,60778.0,60777.0,0.67848102]
[1724149542391,0.11754257,60778.0,60777.0,0.6784809]
[1724149542995,0.11754257,60778.0,60777.0,0.74532214]
[1724149543503,0.11754259,60778.0,60777.0,0.74532214]
[1724149543895,0.05175859,60778.0,60777.0,0.74532214]
[1724149546202,0.05175859,60778.0,60777.0,0.65277273]
[1724149546396,0.05175859,60778.0,60777.0,0.74532207]
[1724149548707,0.02,60778.0,60777.0,0.74532207]
[1724149549805,0.02,60778.0,60777.0,0.38452207]
[1724149550010,0.02,60778.0,60777.0,0.74532207]
[1724149550212,0.02,60778.0,60777.0,0.70418903]